fUSD/lending_fUSD_20250211
["ID","MTS","AMOUNT","RATE_DAILY","PERIOD"]
[352688637,1739242244239,-500.0,0.00011095,2]
[352688638,1739242244249,-5671.44,0.00011095,2]
[352688639,1739242244258,-505.20504921,0.00011095,2]
[352688640,1739242244268,-821.96,0.00011095,2]
[352688641,1739242244278,-500.0,0.00011095,2]
[352688642,1739242244287,-500.0,0.00011095,2]
[352688643,1739242244297,-500.0,0.00011095,2]
[352688644,1739242244307,-1128.57,0.00011095,2]
[352688645,1739242244316,-1241.13,0.00011095,2]
[352688646,1739242244325,-842.8,0.00011095,2]
[352688647,1739242244334,-4503.03,0.00011095,2]
[352688648,1739242244344,-869.96,0.00011095,2]
[352688649,1739242244354,-899.69,0.00011095,2]
[352688650,1739242244363,-500.0,0.00011095,2]
[352688651,1739242244372,-1644.76,0.00011095,2]
[352688652,1739242244382,-500.0,0.00011095,2]
[352688653,1739242244391,-1391.9,0.00011095,2]
[352688654,1739242244401,-500.0,0.00011095,2]
[352688655,1739242244410,-2567.97,0.00011095,2]
[352688656,1739242244419,-313.51872455,0.00011095,2]
[352688657,1739242244429,-554.03356134,0.00011095,2]
[352688658,1739242244438,-1095.16,0.00011095,2]
[352688659,1739242244447,-508.79030239,0.00011095,2]
[352688660,1739242244457,-500.0,0.00011095,2]
[352688661,1739242244466,-1706.92,0.00011095,2]
[352688662,1739242244475,-2186.81,0.00011095,2]
[352688663,1739242244485,-1109.59,0.00011095,2]
[352688664,1739242244495,-500.0,0.00011095,2]
[352688665,1739242244505,-517.22741005,0.00011095,2]
[352688666,1739242244514,-2171.89,0.00011095,2]
[352688667,1739242244524,-359.11,0.00011095,2]
[352688668,1739242244533,-500.0,0.00011095,2]
[352688669,1739242244543,-797.73,0.00011095,2]
[352688670,1739242244552,-501.86895722,0.00011095,2]
[352688671,1739242244562,-560.0060586,0.00011095,2]
[352688672,1739242244571,-979.07,0.00011095,2]
[352688673,1739242244581,-2175.87,0.00011095,2]
[352688674,1739242244591,-500.0,0.00011095,2]
[352688675,1739242244600,-1333.38,0.00011095,2]
[352688676,1739242244610,-500.0,0.00011095,2]
[352688677,1739242244619,-1411.83,0.00011095,2]
[352688678,1739242244629,-502.20983069,0.00011095,2]
[352688679,1739242244638,-949.33,0.00011095,2]
[352688680,1739242244648,-642.16,0.00011095,2]
[352688681,1739242244657,-2824.46,0.00011095,2]
[352688682,1739242244667,-918.74,0.00011095,2]
[352688683,1739242244676,-555.27,0.00011095,2]
[352688684,1739242244685,-1507.87,0.00011095,2]
[352688685,1739242244694,-948.94,0.00011095,2]
[352688686,1739242244703,-500.0,0.00011095,2]
[352688687,1739242244762,-786.5,0.00011095,2]
[352688688,1739242244772,-1014.71,0.00011095,2]
[352688689,1739242244781,-1530.55,0.00011095,2]
[352688690,1739242244790,-327.06707705,0.00011095,2]
[352688691,1739242244799,-500.0,0.00011095,2]
[352688692,1739242244809,-690.61,0.00011095,2]
[352688693,1739242244819,-500.0,0.00011095,2]
[352688694,1739242244828,-500.0,0.00011095,2]
[352688695,1739242244837,-500.0,0.00011095,2]
[352688696,1739242244846,-500.0,0.00011095,2]
[352688697,1739242244856,-1457.15,0.00011095,2]
[352688698,1739242244865,-500.0,0.00011095,2]
[352688699,1739242244875,-500.0,0.00011095,2]
[352688700,1739242244889,-267.8892001,0.00011095,2]
[352688701,1739242244899,-2494.22,0.00011095,2]
[352688702,1739242244908,-500.0,0.00011095,2]
[352688703,1739242244918,-685.22,0.00011095,2]
[352688704,1739242244927,-1334.07,0.00011095,2]
[352688705,1739242244936,-500.0,0.00011095,2]
[352688706,1739242244945,-1128.59,0.00011095,2]
[352688707,1739242244955,-180.67341566,0.00011095,2]
[352688708,1739242244963,-909.39,0.00011095,2]
[352688709,1739242244973,-1435.65,0.00011095,2]
[352688710,1739242244982,-500.0,0.00011095,2]
[352688711,1739242244991,-726.47,0.00011095,2]
[352688712,1739242245001,-764.4,0.00011095,2]
[352688713,1739242245010,-2213.04,0.00011095,2]
[352688714,1739242245020,-515.07134423,0.00011095,2]
[352688715,1739242245029,-500.0,0.00011095,2]
[352688716,1739242245038,-1428.72,0.00011095,2]
[352688717,1739242245048,-857.59,0.00011095,2]
[352688718,1739242245058,-1888.24,0.00011095,2]
[352688719,1739242245068,-1005.01,0.00011095,2]
[352688720,1739242245077,-498.03586568,0.00011095,2]
[352688721,1739242245087,-500.0,0.00011095,2]
[352688722,1739242245096,-345.09,0.00011095,2]
[352688723,1739242245106,-625.48,0.00011095,2]
[352688724,1739242245115,-500.0,0.00011095,2]
[352688725,1739242245125,-2702.49,0.00011095,2]
[352688726,1739242245133,-500.0,0.00011095,2]
[352688727,1739242245143,-854.07,0.00011095,2]
[352688728,1739242245153,-500.0,0.00011095,2]
[352688729,1739242245162,-1108.63,0.00011095,2]
[352688730,1739242245171,-1689.53,0.00011095,2]
[352688731,1739242245181,-1314.61,0.00011095,2]
[352688732,1739242245190,-500.0,0.00011095,2]
[352688733,1739242245201,-500.0,0.00011095,2]
[352688734,1739242245210,-500.0,0.00011095,2]
[352688735,1739242245219,-840.07,0.00011095,2]
[352688736,1739242245229,-1832.92,0.00011095,2]
[352688737,1739242245238,-273.11253676,0.00011099,3]
[352688738,1739242245247,-76884.95286776,0.00011099,2]
[352688739,1739242245257,-76884.95286772,0.00011099,2]
[352688740,1739242245266,-91385.67314773,0.00011099,2]
[352688741,1739242245275,-91385.67314768,0.00011099,2]
[352688742,1739242245284,-178.47404041,0.00011131,2]
[352688743,1739242245293,-91385.67314768,0.00011162,2]
[352688744,1739242245304,-356.72989999,0.00011191,2]
[352688745,1739242245313,-76884.95286772,0.00011223,2]
[352688746,1739242245322,-500.0,0.0001123,2]
[352688747,1739242245331,-500.0,0.0001123,2]
[352688748,1739242245340,-500.0,0.00011231,2]
[352688749,1739242245349,-500.0,0.00011231,2]
[352688750,1739242245358,-375.51897748,0.00011231,2]
[352688751,1739242245367,-500.0,0.00011231,2]
[352688752,1739242245376,-500.0,0.00011231,2]
[352688753,1739242245386,-515.06781677,0.00011231,2]
[352688754,1739242245395,-151.0,0.00011231,2]
[352688756,1739242245405,-514.595435,0.00011232,2]
[352688757,1739242245414,-557.224631,0.00011232,2]
[352688758,1739242245423,-500.0,0.00011232,2]
[352688759,1739242245432,-500.0,0.00011232,2]
[352688760,1739242245442,-500.0,0.00011232,2]
[352688761,1739242245451,-500.0,0.00011232,2]
[352688763,1739242245461,-500.0,0.00011232,2]
[352688764,1739242245470,-500.0,0.00011232,2]
[352688765,1739242245479,-641.47,0.00011232,2]
[352688766,1739242245488,-500.0,0.00011232,2]
[352688767,1739242245497,-504.75,0.00011232,2]
[352688768,1739242245507,-500.0,0.00011232,2]
[352688769,1739242245516,-610.07,0.00011232,2]
[352688770,1739242245525,-500.0,0.00011232,2]
[352688771,1739242245534,-512.89,0.00011232,2]
[352688772,1739242245544,-564.5,0.00011232,2]
[352688773,1739242245554,-500.0,0.00011232,2]
[352688774,1739242245563,-500.0,0.00011232,2]
[352688776,1739242245572,-500.0,0.00011232,2]
[352688777,1739242245581,-500.0,0.00011232,2]
[352688779,1739242245591,-500.0,0.00011232,2]
[352688782,1739242245600,-500.0,0.00011232,2]
[352688784,1739242245610,-500.0,0.00011232,2]
[352688786,1739242245619,-500.0,0.00011232,2]
[352688788,1739242245627,-500.0,0.00011232,2]
[352688790,1739242245636,-510.25020156,0.00011232,2]
[352688791,1739242245645,-507.72074706,0.00011232,2]
[352688792,1739242245654,-506.4412302,0.00011232,2]
[352688794,1739242245663,-507.16323799,0.00011232,2]
[352688795,1739242245672,-908.09,0.00011232,2]
[352688796,1739242245681,-500.0,0.00011232,2]
[352688797,1739242245691,-545.69,0.00011232,2]
[352688798,1739242245700,-500.0,0.00011232,2]
[352688799,1739242245709,-682.22,0.00011232,2]
[352688800,1739242245719,-500.0,0.00011232,2]
[352688801,1739242245728,-500.0,0.00011232,2]
[352688802,1739242245737,-500.0,0.00011232,2]
[352688803,1739242245747,-500.0,0.00011232,2]
[352688804,1739242245756,-500.0,0.00011232,2]
[352688805,1739242245765,-500.0,0.00011232,2]
[352688806,1739242245774,-693.67,0.00011232,2]
[352688807,1739242245783,-506.46002345,0.00011232,2]
[352688808,1739242245792,-631.97,0.00011232,2]
[352688809,1739242245801,-500.0,0.00011232,2]
[352688810,1739242245811,-736.3,0.00011232,2]
[352688811,1739242245820,-500.0,0.00011232,2]
[352688812,1739242245829,-500.0,0.00011232,2]
[352688813,1739242245839,-500.0,0.00011232,2]
[352688814,1739242245848,-588.63,0.00011232,2]
[352688815,1739242245858,-500.0,0.00011232,2]
[352688816,1739242245868,-500.0,0.00011232,2]
[352688817,1739242245882,-500.0,0.00011232,2]
[352688818,1739242245891,-717.54,0.00011232,2]
[352688819,1739242245900,-550.9,0.00011232,2]
[352688820,1739242245909,-500.0,0.00011232,2]
[352688821,1739242245920,-500.0,0.00011232,2]
[352688822,1739242245930,-500.0,0.00011232,2]
[352688823,1739242245939,-500.0,0.00011232,2]
[352688824,1739242245949,-500.0,0.00011232,2]
[352688825,1739242245960,-544.27,0.00011232,2]
[352688826,1739242245970,-500.0,0.00011232,2]
[352688827,1739242245979,-500.0,0.00011232,2]
[352688828,1739242245988,-2407.31,0.00011232,2]
[352688829,1739242245998,-500.0,0.00011232,2]
[352688830,1739242246007,-704.83,0.00011232,2]
[352688831,1739242246017,-500.0,0.00011232,2]
[352688832,1739242246027,-500.0,0.00011232,2]
[352688833,1739242246036,-718.39,0.00011232,2]
[352688834,1739242246045,-506.09668169,0.00011232,2]
[352688835,1739242246054,-500.0,0.00011232,2]
[352688836,1739242246063,-623.53,0.00011232,2]
[352688837,1739242246072,-585.0,0.00011232,2]
[352688838,1739242246081,-500.0,0.00011232,2]
[352688839,1739242246091,-641.8,0.00011232,2]
[352688840,1739242246100,-500.0,0.00011232,2]
[352688841,1739242246109,-556.82,0.00011232,2]
[352688842,1739242246119,-500.0,0.00011232,2]
[352688843,1739242246129,-500.0,0.00011232,2]
[352688844,1739242246138,-500.0,0.00011232,2]
[352688845,1739242246148,-744.44,0.00011232,2]
[352688846,1739242246157,-500.0,0.00011232,2]
[352688847,1739242246166,-500.0,0.00011232,2]
[352688848,1739242246176,-500.0,0.00011232,2]
[352688849,1739242246185,-500.0,0.00011232,2]
[352688850,1739242246194,-945.61,0.00011232,2]
[352688852,1739242246203,-500.0,0.00011232,2]
[352688854,1739242246212,-500.0,0.00011232,2]
[352688856,1739242246221,-550.56,0.00011232,2]
[352688858,1739242246230,-500.0,0.00011232,2]
[352688860,1739242246240,-500.0,0.00011232,2]
[352688862,1739242246249,-500.0,0.00011232,2]
[352688864,1739242246258,-500.0,0.00011232,2]
[352688866,1739242246267,-500.0,0.00011232,2]
[352688868,1739242246276,-532.6,0.00011232,2]
[352688870,1739242246285,-536.35,0.00011232,2]
[352688872,1739242246294,-500.0,0.00011232,2]
[352688874,1739242246303,-500.0,0.00011232,2]
[352688875,1739242246312,-500.0,0.00011232,2]
[352688877,1739242246322,-548.05,0.00011232,2]
[352688879,1739242246331,-645.55,0.00011232,2]
[352688881,1739242246340,-500.0,0.00011232,2]
[352688883,1739242246349,-605.14,0.00011232,2]
[352688885,1739242246359,-500.0,0.00011232,2]
[352688887,1739242246367,-500.0,0.00011232,2]
[352688889,1739242246377,-500.0,0.00011232,2]
[352688891,1739242246386,-500.0,0.00011232,2]
[352688893,1739242246395,-500.0,0.00011232,2]
[352688895,1739242246404,-500.0,0.00011232,2]
[352688897,1739242246414,-623.9,0.00011232,2]
[352688899,1739242246423,-500.0,0.00011232,2]
[352688901,1739242246432,-659.7,0.00011232,2]
[352688903,1739242246441,-500.0,0.00011232,2]
[352688905,1739242246450,-500.0,0.00011232,2]
[352688907,1739242246459,-843.32,0.00011232,2]
[352688909,1739242246468,-500.0,0.00011232,2]
[352688911,1739242246478,-710.14,0.00011232,2]
[352688913,1739242246487,-500.0,0.00011232,2]
[352688915,1739242246497,-500.0,0.00011232,2]
[352688917,1739242246506,-727.35,0.00011232,2]
[352688919,1739242246515,-500.0,0.00011232,2]
[352688921,1739242246525,-500.0,0.00011232,2]
[352688923,1739242246535,-500.0,0.00011232,2]
[352688925,1739242246544,-500.0,0.00011232,2]
[352688927,1739242246553,-500.0,0.00011232,2]
[352688929,1739242246563,-500.0,0.00011232,2]
[352688931,1739242246572,-500.0,0.00011232,2]
[352688933,1739242246582,-623.43,0.00011232,2]
[352688935,1739242246591,-500.0,0.00011232,2]
[352688937,1739242246601,-500.0,0.00011232,2]
[352688939,1739242246610,-500.0,0.00011232,2]
[352688941,1739242246619,-500.0,0.00011232,2]
[352688943,1739242246629,-789.25,0.00011232,2]
[352688945,1739242246638,-500.0,0.00011232,2]
[352688947,1739242246648,-500.0,0.00011232,2]
[352688949,1739242246657,-500.0,0.00011232,2]
[352688951,1739242246667,-500.0,0.00011232,2]
[352688953,1739242246676,-500.0,0.00011232,2]
[352688955,1739242246686,-500.0,0.00011232,2]
[352688957,1739242246695,-710.92,0.00011232,2]
[352688959,1739242246704,-500.0,0.00011232,2]
[352688961,1739242246713,-500.0,0.00011232,2]
[352688963,1739242246722,-723.85,0.00011232,2]
[352688965,1739242246732,-500.0,0.00011232,2]
[352688967,1739242246741,-500.0,0.00011232,2]
[352688969,1739242246750,-580.48,0.00011232,2]
[352688971,1739242246759,-500.0,0.00011232,2]
[352688973,1739242246768,-510.00711912,0.00011232,2]
[352688975,1739242246778,-554.57,0.00011232,2]
[352688977,1739242246787,-825.33,0.00011232,2]
[352688979,1739242246796,-500.0,0.00011232,2]
[352688981,1739242246807,-500.0,0.00011232,2]
[352688983,1739242246817,-500.0,0.00011232,2]
[352688985,1739242246826,-621.24,0.00011232,2]
[352688987,1739242246836,-627.02,0.00011232,2]
[352688988,1739242246844,-510.69,0.00011232,2]
[352688989,1739242246853,-518.17924761,0.00011232,2]
[352688990,1739242246862,-572.28,0.00011232,2]
[352688991,1739242246871,-500.0,0.00011232,2]
[352688992,1739242246885,-500.0,0.00011232,2]
[352688993,1739242246894,-627.80504745,0.00011232,2]
[352688994,1739242246903,-731.51,0.00011232,2]
[352688995,1739242246912,-545.03,0.00011232,2]
[352688996,1739242246922,-335.43428595,0.00011232,2]
[352688997,1739242246931,-500.0,0.00011232,2]
[352688998,1739242246940,-500.0,0.00011232,2]
[352688999,1739242246948,-799.95,0.00011232,2]
[352689000,1739242246958,-500.0,0.00011232,2]
[352689001,1739242246967,-500.0,0.00011232,2]
[352689002,1739242246976,-500.0,0.00011232,2]
[352689004,1739242246985,-500.0,0.00011232,2]
[352689006,1739242246995,-500.0,0.00011232,2]
[352689008,1739242247005,-512.4,0.00011232,2]
[352689010,1739242247014,-500.0,0.00011232,2]
[352689012,1739242247024,-500.0,0.00011232,2]
[352689014,1739242247034,-500.0,0.00011232,2]
[352689016,1739242247043,-787.98,0.00011232,2]
[352689018,1739242247053,-500.0,0.00011232,2]
[352689020,1739242247064,-530.32,0.00011232,2]
[352689022,1739242247074,-570.97,0.00011232,2]
[352689024,1739242247083,-633.99,0.00011232,2]
[352689026,1739242247097,-500.0,0.00011232,2]
[352689028,1739242247106,-728.92,0.00011232,2]
[352689030,1739242247116,-572.40827311,0.00011232,2]
[352689032,1739242247126,-500.0,0.00011232,2]
[352689034,1739242247135,-500.0,0.00011232,2]
[352689036,1739242247145,-824.22,0.00011232,2]
[352689038,1739242247155,-500.0,0.00011232,2]
[352689040,1739242247165,-500.0,0.00011232,2]
[352689042,1739242247175,-500.0,0.00011232,2]
[352689044,1739242247185,-624.6,0.00011232,2]
[352689046,1739242247194,-500.0,0.00011232,2]
[352689048,1739242247204,-500.18,0.00011232,2]
[352689050,1739242247214,-500.0,0.00011232,2]
[352689052,1739242247223,-634.17,0.00011232,2]
[352689054,1739242247233,-500.0,0.00011232,2]
[352689056,1739242247242,-500.0,0.00011232,2]
[352689058,1739242247251,-500.0,0.00011232,2]
[352689060,1739242247260,-500.0,0.00011232,2]
[352689062,1739242247269,-500.0,0.00011232,2]
[352689064,1739242247278,-500.0,0.00011232,2]
[352689066,1739242247288,-500.0,0.00011232,2]
[352689068,1739242247297,-705.53,0.00011232,2]
[352689070,1739242247307,-1090.21,0.00011232,2]
[352689072,1739242247316,-616.21,0.00011232,2]
[352689074,1739242247325,-500.0,0.00011232,2]
[352689076,1739242247334,-500.0,0.00011232,2]
[352689078,1739242247343,-500.0,0.00011232,2]
[352689080,1739242247351,-500.0,0.00011232,2]
[352689082,1739242247361,-587.78746947,0.00011232,2]
[352689084,1739242247370,-500.0,0.00011232,2]
[352689086,1739242247379,-1782.85,0.00011232,2]
[352689088,1739242247389,-500.0,0.00011232,2]
[352689090,1739242247398,-500.0,0.00011232,2]
[352689092,1739242247407,-1102.51,0.00011232,2]
[352689094,1739242247416,-500.0,0.00011232,2]
[352689096,1739242247425,-709.73,0.00011232,2]
[352689098,1739242247434,-779.39,0.00011232,2]
[352689100,1739242247443,-508.10784011,0.00011232,2]
[352689102,1739242247453,-500.0,0.00011232,2]
[352689104,1739242247461,-1791.74,0.00011232,2]
[352689106,1739242247470,-500.0,0.00011232,2]
[352689108,1739242247480,-1206.04,0.00011232,2]
[352689110,1739242247490,-907.74,0.00011232,2]
[352689112,1739242247500,-828.82,0.00011232,2]
[352689114,1739242247509,-612.25,0.00011232,2]
[352689116,1739242247519,-1055.4,0.00011232,2]
[352689118,1739242247528,-500.0,0.00011232,2]
[352689120,1739242247538,-500.0,0.00011232,2]
[352689122,1739242247547,-1157.89,0.00011232,2]
[352689124,1739242247557,-1002.81,0.00011232,2]
[352689126,1739242247566,-1188.22,0.00011232,2]
[352689128,1739242247575,-500.0,0.00011232,2]
[352689130,1739242247584,-587.27,0.00011232,2]
[352689132,1739242247593,-863.53,0.00011232,2]
[352689134,1739242247602,-699.16,0.00011232,2]
[352689136,1739242247611,-500.0,0.00011232,2]
[352689138,1739242247621,-500.0,0.00011232,2]
[352689140,1739242247630,-500.0,0.00011232,2]
[352689142,1739242247639,-977.72,0.00011232,2]
[352689144,1739242247648,-665.81,0.00011232,2]
[352689146,1739242247657,-807.37,0.00011232,2]
[352689148,1739242247667,-500.0,0.00011232,2]
[352689150,1739242247676,-767.29,0.00011232,2]
[352689152,1739242247685,-617.19,0.00011232,2]
[352689154,1739242247696,-500.0,0.00011232,2]
[352689156,1739242247705,-721.83,0.00011232,2]
[352689158,1739242247715,-1174.78,0.00011232,2]
[352689160,1739242247723,-822.24,0.00011232,2]
[352689162,1739242247733,-1338.08,0.00011232,2]
[352689164,1739242247742,-745.58,0.00011232,2]
[352689166,1739242247752,-620.35,0.00011232,2]
[352689168,1739242247761,-509.99376282,0.00011232,2]
[352689170,1739242247771,-500.0,0.00011232,2]
[352689172,1739242247780,-1164.89,0.00011232,2]
[352689174,1739242247790,-3949.34,0.00011232,2]
[352689176,1739242247799,-1095.64,0.00011232,2]
[352689178,1739242247808,-500.0,0.00011232,2]
[352689180,1739242247818,-613.45,0.00011232,2]
[352689182,1739242247827,-1502.82,0.00011232,2]
[352689184,1739242247837,-509.24,0.00011232,2]
[352689186,1739242247846,-704.95,0.00011232,2]
[352689188,1739242247855,-674.24,0.00011232,2]
[352689190,1739242247865,-1059.3,0.00011232,2]
[352689192,1739242247876,-1251.3,0.00011232,2]
[352689194,1739242247888,-500.0,0.00011232,2]
[352689197,1739242247899,-500.0,0.00011232,2]
[352689199,1739242247908,-804.32,0.00011232,2]
[352689200,1739242247918,-1358.76,0.00011232,2]
[352689203,1739242247928,-507.79,0.00011232,2]
[352689204,1739242247937,-551.27,0.00011232,2]
[352689206,1739242247947,-1548.78,0.00011232,2]
[352689208,1739242247956,-865.8,0.00011232,2]
[352689210,1739242247966,-500.0,0.00011232,2]
[352689212,1739242247976,-1779.0,0.00011232,2]
[352689214,1739242247985,-500.0,0.00011232,2]
[352689216,1739242247994,-507.30060433,0.00011232,2]
[352689218,1739242248003,-531.59,0.00011232,2]
[352689220,1739242248013,-776.01,0.00011232,2]
[352689222,1739242248024,-505.16,0.00011232,2]
[352689224,1739242248033,-1526.69,0.00011232,2]
[352689225,1739242248043,-1467.6,0.00011232,2]
[352689227,1739242248052,-657.43,0.00011232,2]
[352689230,1739242248064,-737.86,0.00011232,2]
[352689232,1739242248074,-633.86,0.00011232,2]
[352689233,1739242248084,-500.0,0.00011232,2]
[352689235,1739242248094,-500.0,0.00011232,2]
[352689237,1739242248104,-1701.71,0.00011232,2]
[352689239,1739242248114,-504.41,0.00011232,2]
[352689241,1739242248124,-593.52,0.00011232,2]
[352689243,1739242248134,-1363.55,0.00011232,2]
[352689245,1739242248144,-643.09,0.00011232,2]
[352689247,1739242248154,-1116.68,0.00011232,2]
[352689249,1739242248164,-582.28,0.00011232,2]
[352689251,1739242248174,-1358.58,0.00011232,2]
[352689253,1739242248184,-500.0,0.00011232,2]
[352689255,1739242248194,-2215.87,0.00011232,2]
[352689257,1739242248205,-500.0,0.00011232,2]
[352689259,1739242248216,-500.0,0.00011232,2]
[352689261,1739242248227,-526.19,0.00011232,2]
[352689263,1739242248237,-1388.18,0.00011232,2]
[352689265,1739242248248,-500.0,0.00011232,2]
[352689267,1739242248259,-500.0,0.00011232,2]
[352689269,1739242248270,-1616.99,0.00011232,2]
[352689271,1739242248283,-1006.39,0.00011232,2]
[352689273,1739242248294,-500.0,0.00011232,2]
[352689276,1739242248306,-1472.63,0.00011232,2]
[352689278,1739242248317,-5671.44,0.00011232,2]
[352689280,1739242248327,-821.96,0.00011232,2]
[352689282,1739242248337,-500.0,0.00011232,2]
[352689284,1739242248347,-451.0437141,0.00011232,2]
[352689286,1739242248357,-500.0,0.00011232,2]
[352689288,1739242248367,-1128.57,0.00011232,2]
[352689290,1739242248378,-1241.13,0.00011232,2]
[352689292,1739242248388,-842.8,0.00011232,2]
[352689294,1739242248399,-4503.03,0.00011232,2]
[352689296,1739242248410,-869.96,0.00011232,2]
[352689298,1739242248419,-899.69,0.00011232,2]
[352689300,1739242248429,-1644.76,0.00011232,2]
[352689302,1739242248439,-500.0,0.00011232,2]
[352689304,1739242248450,-1391.9,0.00011232,2]
[352689306,1739242248462,-500.0,0.00011232,2]
[352689308,1739242248472,-2567.97,0.00011232,2]
[352689310,1739242248482,-1095.16,0.00011232,2]
[352689312,1739242248494,-500.0,0.00011232,2]
[352689314,1739242248506,-1706.92,0.00011232,2]
[352689316,1739242248518,-2186.81,0.00011232,2]
[352689318,1739242248527,-1109.59,0.00011232,2]
[352689320,1739242248538,-500.0,0.00011232,2]
[352689322,1739242248547,-2171.89,0.00011232,2]
[352689324,1739242248561,-500.0,0.00011232,2]
[352689327,1739242248572,-797.73,0.00011232,2]
[352689329,1739242248583,-979.07,0.00011232,2]
[352689331,1739242248593,-2175.87,0.00011232,2]
[352689332,1739242248603,-500.0,0.00011232,2]
[352689334,1739242248614,-1333.38,0.00011232,2]
[352689335,1739242248626,-500.0,0.00011232,2]
[352689337,1739242248637,-1411.83,0.00011232,2]
[352689339,1739242248647,-949.33,0.00011232,2]
[352689340,1739242248658,-2824.46,0.00011232,2]
[352689341,1739242248671,-918.74,0.00011232,2]
[352689342,1739242248683,-555.27,0.00011232,2]
[352689343,1739242248694,-1507.87,0.00011232,2]
[352689344,1739242248705,-948.94,0.00011232,2]
[352689345,1739242248715,-786.5,0.00011232,2]
[352689346,1739242248725,-1014.71,0.00011232,2]
[352689347,1739242248736,-1530.55,0.00011232,2]
[352689348,1739242248747,-690.61,0.00011232,2]
[352689349,1739242248758,-500.0,0.00011232,2]
[352689350,1739242248769,-492.2689063,0.00011232,2]
[352689351,1739242248779,-500.0,0.00011232,2]
[352689352,1739242248790,-1457.15,0.00011232,2]
[352689353,1739242248800,-500.0,0.00011232,2]
[352689354,1739242248812,-2494.22,0.00011232,2]
[352689355,1739242248823,-500.0,0.00011232,2]
[352689356,1739242248833,-685.22,0.00011232,2]
[352689357,1739242248844,-1334.07,0.00011232,2]
[352689358,1739242248856,-500.0,0.00011232,2]
[352689359,1739242248867,-1128.59,0.00011232,2]
[352689360,1739242248881,-909.39,0.00011232,2]
[352689361,1739242248891,-1435.65,0.00011232,2]
[352689362,1739242248903,-270.41726246,0.00011232,2]
[352689363,1739242248914,-726.47,0.00011232,2]
[352689364,1739242248925,-764.4,0.00011232,2]
[352689365,1739242248935,-2213.04,0.00011232,2]
[352689366,1739242248946,-500.0,0.00011232,2]
[352689367,1739242248957,-1428.72,0.00011232,2]
[352689368,1739242248968,-857.59,0.00011232,2]
[352689369,1739242248979,-1888.24,0.00011232,2]
[352689370,1739242248990,-1005.01,0.00011232,2]
[352689371,1739242249001,-4000.0,0.00011232,2]
[352689372,1739242249012,-500.0,0.00011232,2]
[352689373,1739242249023,-625.48,0.00011232,2]
[352689374,1739242249035,-554.99402692,0.00011232,2]
[352689375,1739242249046,-2702.49,0.00011232,2]
[352689376,1739242249057,-500.0,0.00011232,2]
[352689377,1739242249069,-854.07,0.00011232,2]
[352689378,1739242249080,-500.0,0.00011232,2]
[352689379,1739242249091,-1108.63,0.00011232,2]
[352689380,1739242249102,-823.80308739,0.00011232,2]
[352689381,1739242249442,-277.224,0.00011232,2]
[352689382,1739242249455,-588.50291261,0.00011232,2]
[352689383,1739242249466,-1314.61,0.00011232,2]